Cogmind - Beta 17 @@@ ROGUE MODE // 2026.07.07 @ 22:31:28 Player: kite Result: Self-destructed Performance ------------- Evolutions (6) 3000 Regions Visited (21) 4200 Robots Destroyed (265) 1325 Value Destroyed (11319) 11319 Prototype IDs (53) 1060 Alien Tech Used (1) 200 Bonus (3844) 3844 TOTAL SCORE: 24948 Bonus ------- High Alert Combat Kills 1766 Follower Combat Kills 78 Entered Garrisons 600 Entered DSFs 500 Aligned with FarCom 300 Acquired ECA 300 Met Zhirov 300 Cogmind --------- Core Integrity 642/1150 Matter 288/300 Energy 390/390 System Corruption 8% Temperature Cool (0) Movement Walking (190) Ox1 Location -4/Factory Parts ------- > --- POWER (2) -------- Micro Fission Core Heavy Antimatter Reactor > --- PROPULSION (6) --- Flexi-carbon Leg Advanced Myomer Leg Advanced Myomer Leg > --- UTILITY (7) ------ High-capacity Storage Unit Advanced Terrain Scanner Advanced Melee Analysis Suite Improved Transmission Jammer Advanced Reaction Control System Experimental Utility Shielding Improved Hacking Suite > --- WEAPON (4) ------- Heavy Mace Heavy Mace Makeshift Hammer Lance > --- INVENTORY (20) --- Advanced Signal Interpreter IFF Parser Microactuators Cloaking Device Graphene Brace Drone Bay (2/2) Transdimensional Reconstructor Improved Remote Datajack Field Lobotomy Kit (2) Improved Plasma Cutter Heavy Mace Peak State ------------ > --- POWER ------------ Improved Deuterium Engine Light Antimatter Reactor > --- PROPULSION ------- Improved VSS Leg Thunder Leg Myomer Leg Myomer Leg Advanced Myomer Leg Advanced Myomer Leg > --- UTILITY ---------- High-capacity Storage Unit Advanced Terrain Scanner Advanced Melee Analysis Suite Improved Transmission Jammer Graphene Brace Improved Hacking Suite Advanced System Shield > --- WEAPON ----------- Improved Plasma Cutter Centrium Greatsword Kinetic Spear > --- INVENTORY -------- Heavy Antimatter Reactor Improved Carbon-fiber Leg Flexi-carbon Leg Thunder Leg Advanced Myomer Leg Advanced Signal Interpreter IFF Parser Microactuators Advanced Reaction Control System Cloaking Device Experimental Utility Shielding Drone Bay Transdimensional Reconstructor Improved Remote Datajack Field Lobotomy Kit Heavy Mace Heavy Mace Heavy Mace Makeshift Hammer Lance [Rating: 127] Favorites ----------- Power Improved Deuterium Engine Engine Improved Deuterium Engine Power Core Reinforced Fission Core Reactor Light Antimatter Reactor Propulsion Improved Carbon-fiber Leg Treads Light Treads Leg Improved Carbon-fiber Leg Utility Large Storage Unit Device Improved Terrain Scanner Storage Large Storage Unit Processor Advanced Melee Analysis Suite Hackware Improved Hacking Suite Protection Light Armor Plating Weapon Chainsword Energy Gun Medium Laser Ballistic Gun Gauss Rifle Launcher Missile Launcher Special Weapon Improved Plasma Cutter Impact Weapon Great Maul Slashing Weapon Chainsword Piercing Weapon Kinetic Spear Special Melee Weapon Datajack Build | -11 -10 -10 -10 -9 -8 -8 -8 -7 -7 -6 -6 -6 -6 -5 -5 -5 -5 -4 -4 -4 -4 ------- Run | Yrd Mat Min Exi Min Mat Gar Mat Fac Gar Fac Gar Fac DSF Fac Upp Upp Zhi Pro Fac Was Fac Slots Evolved 12 | . . . . . 4 . . 2 . 2 . . . 2 . . . . 2 . . Power 1 | . . . . . . . . . . . . . . . . . . . 1 . . Propulsion 4 | . . . . . 3 . . . . . . . . 1 . . . . . . . Utility 5 | . . . . . 1 . . 2 . 1 . . . 1 . . . . . . . Weapon 2 | . . . . . . . . . . 1 . . . . . . . . 1 . . Parts Attached 189 | 7 7 . 3 9 20 8 8 1 20 20 22 1 15 13 4 1 7 1 11 . 11 Power 19 | 1 1 . . 1 1 1 1 . 5 . 1 1 1 1 . . 1 . 1 . 2 Engine 7 | 1 1 . . 1 1 . . . . . . 1 1 1 . . . . . . . Core 7 | . . . . . . 1 1 . 4 . . . . . . . . . . . 1 Reactor 5 | . . . . . . . . . 1 . 1 . . . . . 1 . 1 . 1 Propulsion 47 | 2 . . . 2 7 1 3 . 3 3 10 . 4 2 . . 4 . 4 . 2 Treads 6 | 2 . . . 2 1 . . . . . . . . 1 . . . . . . . Leg 41 | . . . . . 6 1 3 . 3 3 10 . 4 1 . . 4 . 4 . 2 Wheel . | . . . . . . . . . . . . . . . . . . . . . . Hover . | . . . . . . . . . . . . . . . . . . . . . . Flight . | . . . . . . . . . . . . . . . . . . . . . . Utility 75 | 2 3 . 2 1 8 4 2 1 9 10 3 . 9 7 4 1 2 . 4 . 3 Device 29 | 1 1 . . . 2 1 . 1 4 5 2 . 2 1 3 1 1 . 1 . 3 Storage 11 | 1 1 . 2 . 2 . 1 . 1 . . . . 2 . . . . 1 . . Processor 14 | . . . . . 2 . 1 . 2 3 1 . 2 2 1 . . . . . . Hackware 5 | . . . . . . . . . . 1 . . 1 1 . . . . 2 . . Protection 16 | . 1 . . 1 2 3 . . 2 1 . . 4 1 . . 1 . . . . Artifact . | . . . . . . . . . . . . . . . . . . . . . . Weapon 48 | 2 3 . 1 5 4 2 2 . 3 7 8 . 1 3 . . . 1 2 . 4 Energy Gun 3 | 2 1 . . . . . . . . . . . . . . . . . . . . Energy Cannon . | . . . . . . . . . . . . . . . . . . . . . . Ballistic Gun 7 | . . . . . . 1 . . 1 . 5 . . . . . . . . . . Ballistic Cannon . | . . . . . . . . . . . . . . . . . . . . . . Launcher 6 | . . . . 3 . . 1 . . 2 . . . . . . . . . . . Special Weapon 4 | . . . . . . . . . . 1 1 . . 1 . . . . . . 1 Impact Weapon 14 | . 2 . . 2 2 . 1 . 1 . . . . 2 . . . 1 1 . 2 Slashing Weapon 10 | . . . . . 2 1 . . 1 3 2 . . . . . . . 1 . . Piercing Weapon 3 | . . . . . . . . . . 1 . . 1 . . . . . . . 1 Special Melee Weapon 1 | . . . 1 . . . . . . . . . . . . . . . . . . Unidentified Prototypes 7 | . . . . . . . . . . 2 . . . 1 . . 3 . 1 . . Parts Lost 59 | . . . . 6 4 2 1 . 9 3 13 . 2 . . . . 1 5 . 13 Power 10 | . . . . 1 1 1 1 . 3 . . . 1 . . . . . . . 2 Propulsion 27 | . . . . 2 2 . . . 3 1 8 . . . . . . 1 3 . 7 Utility 12 | . . . . 1 1 1 . . 1 1 3 . 1 . . . . . 1 . 2 Weapon 10 | . . . . 2 . . . . 2 1 2 . . . . . . . 1 . 2 Highest Loss Streak 12 | . . . . 6 2 1 1 . 2 1 4 . 1 . . . . 1 5 . 12 To Critical Strikes 3 | . . . . . . . . . . . 3 . . . . . . . . . . Average Backups 15 | 3 12 18 19 13 12 12 12 12 12 14 14 14 14 15 19 20 19 19 19 20 17 Power 1 | . 1 2 1 . . . . . . 1 1 2 1 1 1 1 1 1 1 1 . Propulsion 2 | 1 3 4 4 3 . 3 3 5 3 2 3 3 2 1 4 4 3 2 1 2 2 Utility 4 | . 3 6 6 2 3 2 3 1 2 4 2 3 5 6 6 7 7 7 8 9 7 Weapon 4 | . 4 5 5 5 6 4 4 4 4 4 5 3 3 4 5 5 5 5 4 4 3 Tool/Special . | . . . . . . . . . . . . . . . . . . . . . . Unused Backups 54 | . 2 2 4 . 5 2 4 1 3 5 3 . 6 4 1 . 4 . 2 . 6 Power 9 | . . . . . 1 . 1 . 1 1 2 . 2 . . . . . 1 . . Propulsion 13 | . . . . . 1 2 2 . 1 1 1 . 1 . 1 . 2 . 1 . . Utility 20 | . 1 . 4 . 1 . 1 1 1 3 . . 2 1 . . 2 . . . 3 Weapon 7 | . 1 2 . . 2 . . . . . . . . 2 . . . . . . . Tool/Special 5 | . . . . . . . . . . . . . 1 1 . . . . . . 3 Average Slot Usage (%) 90 | . 99 100 99 97 89 80 80 83 82 79 94 100 99 98 94 94 95 99 93 93 91 Engine 5 | . 14 14 14 14 8 3 . . . . . 1 5 5 5 5 5 5 5 5 3 Core 2 | . . . . . . 5 8 7 4 6 4 4 . . . . . . . . . Treads 6 | . 28 28 28 27 17 . . . . . . . . . 5 5 2 . . . . Leg 21 | . . . . . 18 27 27 23 22 21 29 33 33 32 23 23 27 34 30 31 27 Device 7 | . 11 . . . 5 3 5 14 12 7 12 13 3 10 11 10 10 9 5 10 14 Storage 8 | . 14 14 14 14 9 9 9 7 8 6 6 6 6 5 5 5 5 5 5 5 5 Processor 11 | . . . . . 7 9 9 7 9 13 16 20 13 16 22 23 23 23 14 9 5 Protection 4 | . 2 14 13 12 5 5 3 7 4 4 . . 9 2 . . . . . . 1 Energy Gun 1 | . 23 . . . . . . . . . . . . . . . . . . . . Impact Weapon 8 | . 4 28 15 25 12 9 9 7 6 4 1 6 5 5 5 5 5 4 9 5 7 Slashing Weapon 5 | . . . . . 5 8 8 7 6 7 8 13 6 4 5 5 5 4 2 5 3 Piercing Weapon 2 | . . . . . . . . . . 3 1 . 5 5 5 5 5 4 5 5 4 Peak Build Rating 127 | 7 9 9 10 10 43 43 42 49 61 78 77 62 74 82 84 83 98 97 123 125 127 Average Rating 54 | 5 8 8 9 8 21 40 41 48 54 73 63 61 67 76 82 83 86 90 104 122 116 On Entrance 54 | . 7 9 9 9 9 40 40 42 49 61 72 61 60 68 81 83 83 91 91 123 118 Avg Prop Armor Cover (%) 10 | . . . . . 10 . . 12 12 . . . . 10 15 14 11 3 3 . . Naked Turns . | . . . . . . . . . . . . . . . . . . . . . . Heaviest Build 89 | 15 52 52 52 32 41 39 35 38 55 72 59 53 55 65 67 68 68 68 74 76 89 Greatest Support 148 | 40 40 40 40 40 72 72 78 48 78 80 81 80 92 107 69 69 141 96 148 148 148 Greatest Overweight (x) 1 | . 1 1 1 . 1 . . . 1 1 1 . . 1 . . . . . . 1 Average Overweight (x) . | . . 1 . . . . . . . . . . . . . . . . . . . Largest Inventory Capacity 20 | 8 20 20 20 15 15 15 15 15 15 15 15 15 15 20 20 20 20 20 20 20 20 Average Capacity 16 | 7 17 20 19 15 15 15 15 15 15 15 15 15 15 16 20 20 20 20 20 20 20 Most Carried 20 | 5 20 20 20 15 15 15 15 15 15 15 15 15 15 20 20 20 20 20 20 20 20 Average Carried 15 | 3 12 18 19 13 12 14 14 14 14 14 14 14 14 15 19 20 19 19 19 20 17 Final Capacity 20 | 8 20 20 15 15 15 15 15 15 15 15 15 15 15 20 20 20 20 20 20 20 20 Final Carried 20 | 5 20 19 14 9 14 15 15 15 15 15 14 15 15 20 20 20 20 20 20 20 11 Class Distribution -------------------- 48% | Mutant 33% | Gladiator 5% | Hacker-Gladiator 5% | Assassin Dominant Class ---------------- Mutant | -10/Materials Mutant | -10/Mines Mutant | -10/Exiles Mutant | -9/Mines Assassin | -8/Materials Mutant | -8/Garrison Mutant | -8/Materials Mutant | -7/Factory Mutant | -7/Garrison Gladiator | -6/Factory Gladiator | -6/Garrison Scavenger-Gladiator | -6/Factory Scavenger-Gladiator | -6/DSF Gladiator | -5/Factory Gladiator | -5/Upper Caves Gladiator | -5/Upper Caves Gladiator | -5/Zhirov Gladiator | -4/Proximity Caves Hacker-Gladiator | -4/Factory Hacker-Gladiator | -4/Waste Hacker-Gladiator | -4/Factory Resources | -11 -10 -10 -10 -9 -8 -8 -8 -7 -7 -6 -6 -6 -6 -5 -5 -5 -5 -4 -4 -4 -4 ----------- Run | Yrd Mat Min Exi Min Mat Gar Mat Fac Gar Fac Gar Fac DSF Fac Upp Upp Zhi Pro Fac Was Fac Matter Collected 4989 | 232 237 263 68 55 498 152 265 89 433 478 533 . 426 174 163 40 . 304 302 . 277 Remotely . | . . . . . . . . . . . . . . . . . . . . . . Salvage Created 11358 | 123 512 31 . 31 1292 886 767 39 1033 2187 761 . 533 1046 66 134 . 264 844 . 809 Parts 507 | 5 27 3 . 4 46 33 30 . 36 108 41 . 25 44 1 4 . 7 42 . 51 Haulers Intercepted 14 | . 2 . . . 1 . 3 . . 3 . . . 3 . . . . 2 . . Recyclers Shooed 5 | . 2 . . . 3 . . . . . . . . . . . . . . . . Parts Field Recycled . | . . . . . . . . . . . . . . . . . . . . . . Retrieved Matter . | . . . . . . . . . . . . . . . . . . . . . . Parts Self-Destructed 8 | . . . . . . . . . . . . . . . . 2 . 6 . . . Prevented 1 | . . . . . . . . . . . . . . . . . . 1 . . . Parts Restored 1 | . . . . . . . . . . 1 . . . . . . . . . . . Broken 1 | . . . . . . . . . . 1 . . . . . . . . . . . Kills | -11 -10 -10 -10 -9 -8 -8 -8 -7 -7 -6 -6 -6 -6 -5 -5 -5 -5 -4 -4 -4 -4 ------- Run | Yrd Mat Min Exi Min Mat Gar Mat Fac Gar Fac Gar Fac DSF Fac Upp Upp Zhi Pro Fac Was Fac Combat Hostiles Destroyed 180 | . 11 . . 6 22 20 13 . 28 21 20 . 8 4 . 1 . 7 5 . 14 Melee 100 | . . . . 1 10 15 5 . 11 16 7 . 7 4 . 1 . 5 5 . 13 Guns 16 | . 10 . . . . . . . 1 . 5 . . . . . . . . . . AOE 31 | . . . . 5 4 . 5 . 6 4 7 . . . . . . . . . . Classes Destroyed 18 | 2 6 . . 1 3 1 2 . . 1 1 . . . . . . 1 . . . Worker 21 | . 2 1 . 1 2 . 1 1 . 7 . . . 2 . . . . 2 . 2 Builder 9 | . . . . . 1 . 1 . . 3 . . . 2 . . . . 2 . . Tunneler 7 | 3 . 1 . . 1 . . . . 1 . . . 1 . . . . . . . Hauler 14 | . 2 . . . 1 . 3 . . 3 . . . 3 . . . . 2 . . Recycler 14 | 1 . . . . 4 . 1 . . 4 . . . 3 . . . . 1 . . Mechanic 4 | . . . . . . . 1 . . 3 . . . . . . . . . . . Operator 2 | . 1 . . . 1 . . . . . . . . . . . . . . . . Drone 1 | . . . . . . . . . . . . . . . . . . 1 . . . Watcher 14 | . 1 . . . 2 . 1 1 2 4 . . . . . . . . 3 . . Swarmer 43 | . 3 . . 4 4 2 . . 11 4 6 . 3 . . . . 4 . . 2 Grunt 72 | . 8 . . . 16 8 8 . 11 5 7 . 2 2 . . . . . . 5 Brawler 4 | . . . . . 1 1 . . 1 . . . 1 . . . . . . . . Duelist 5 | . . . . . . . 3 . . 1 . . . 1 . . . . . . . Sentry 20 | . . . . . 1 6 2 . 3 3 3 . . . . 1 . . 1 . . Demolisher 2 | . . . . 2 . . . . . . . . . . . . . . . . . Specialist 7 | . . . . . . 3 . . 2 . . . 2 . . . . . . . . Hunter 7 | . . . . . . . . . . . 3 . . . . . . 2 2 . . Programmer 19 | . . . . . . . . . . 8 1 . . 1 . . . . 2 . 7 Decomposer 3 | . . . . . . . . . . . . . . . . 3 . . . . . Packrat 1 | . . . . . . . . . . . . . . . 1 . . . . . . Best Kill Streak 10 | 1 4 1 . 4 8 3 10 1 5 7 7 . 4 5 . 1 . 4 3 . 8 Combat Bots Only 8 | . 3 . . 4 4 3 7 . 5 4 7 . 4 3 . 1 . 4 2 . 8 Max Kills in Single Turn 4 | 1 1 1 . 2 3 1 2 1 2 4 2 . 1 2 1 1 . 1 1 . 1 Gunslinging . | . . . . . . . . . . . . . . . . . . . . . . Exploded 4 | . . . . 2 2 . 2 . 2 4 2 . . . . . . . . . . Melee 2 | . . . . 1 1 1 1 . 1 1 1 . 1 2 . 1 . 1 1 . 1 Uniques/NPCs Destroyed . | . . . . . . . . . . . . . . . . . . . . . . Combat | -11 -10 -10 -10 -9 -8 -8 -8 -7 -7 -6 -6 -6 -6 -5 -5 -5 -5 -4 -4 -4 -4 -------- Run | Yrd Mat Min Exi Min Mat Gar Mat Fac Gar Fac Gar Fac DSF Fac Upp Upp Zhi Pro Fac Was Fac Hostile Shots Fired 1536 | . 52 . . 27 80 139 42 . 306 206 298 . 39 19 12 4 . 54 73 1 184 Missed 436 | . 12 . . 3 17 32 12 . 99 63 90 . 9 2 2 2 . 13 22 1 57 Hits 1100 | . 40 . . 24 63 107 30 . 207 143 208 . 30 17 10 2 . 41 51 . 127 Melee 16 | . . . . . 1 1 3 . 3 5 . . 2 1 . . . . . . . Projectile 1084 | . 40 . . 24 62 106 27 . 204 138 208 . 28 16 10 2 . 41 51 . 127 AOE 14 | . . . . 14 . . . . . . . . . . . . . . . . . Critical Strikes 39 | . . . . . 2 5 6 . 4 6 6 . 1 1 . . . . 2 . 6 Actively Blocked 5 | . . . . . . . . . . . . . . . . . . . . . 5 Part Disruptions 3 | . . . . . . . . . . . . . . 1 . . . . . . 2 Actively Blocked 1 | . . . . . . . . . . . . . . 1 . . . . . . . Damage Taken 16626 | . 410 . . 696 940 1373 535 . 2601 2049 2668 . 608 526 146 50 . 604 943 . 2477 Core 2261 | . 93 . . 143 131 166 88 . 276 215 356 . 84 111 18 . . 72 158 . 350 Absorbed by Shields . | . . . . . . . . . . . . . . . . . . . . . . Redirected to Shielding 128 | . . . . . . . . . . . . . . . . . . . . . 128 Regen/Repaired (Parts) 801 | . . . . . . . 739 . . . . . . . . . . . . . 62 Core Remaining (%) 49 | 100 . . . 5 . . 30 . 60 . . . 22 . . . . 79 . . . Volleys Fired 149 | 12 52 . . 14 5 3 10 . 14 4 32 . 1 1 . . . 1 . . . Largest 3 | 2 2 . . 1 1 1 1 . 2 1 3 . 1 1 . . . 1 . . . Hottest 115 | 100 115 . . 33 30 23 36 . 69 36 84 . . 7 . . . . . . . Shots Fired 253 | 24 103 . . 14 5 3 10 . 15 4 72 . 1 1 . . . 1 . . . Gun 198 | 24 103 . . . . 3 . . 8 . 60 . . . . . . . . . . Cannon . | . . . . . . . . . . . . . . . . . . . . . . Launcher 49 | . . . . 14 5 . 10 . 7 2 11 . . . . . . . . . . Special 6 | . . . . . . . . . . 2 1 . 1 1 . . . 1 . . . Kinetic 71 | . . . . . . 3 . . 8 . 60 . . . . . . . . . . Thermal 127 | 24 103 . . . . . . . . . . . . . . . . . . . . Explosive 49 | . . . . 14 5 . 10 . 7 2 11 . . . . . . . . . . Electromagnetic . | . . . . . . . . . . . . . . . . . . . . . . Robot Hit Streak 18 | 5 18 . . 4 1 . 4 . 8 1 12 . 13 14 . . . 15 . . . Robot Miss Streak 5 | 2 5 . . 2 . . 2 . 1 2 2 . . . . . . . . . . Penetration Max . | . . . . . . . . . . . . . . . . . . . . . . Secondary Targets . | . . . . . . . . . . . . . . . . . . . . . . Shots Hit Robots 651 | 12 60 2 4 9 69 50 34 2 73 107 70 . 19 26 1 5 . 14 34 . 60 Core Hits 308 | 5 26 2 . 23 23 13 31 . 25 52 42 . 10 14 1 4 . 4 14 . 19 Critical Kills 9 | . . . . . 1 1 . . 4 1 1 . . . . . . . . . 1 Critical Parts Destroyed 37 | . . . . . 12 3 2 1 11 2 2 . . 1 . . . 1 1 . 1 Critical Strikes 93 | . 5 . . . 13 8 4 1 24 13 5 . 3 4 . . . 1 8 . 4 Burn 5 | . 5 . . . . . . . . . . . . . . . . . . . . Destroy 1 | . . . . . . . . . . . 1 . . . . . . . . . . Smash 47 | . . . . . 13 4 2 1 17 3 2 . . 1 . . . 1 1 . 2 Sever 25 | . . . . . . 4 2 . 7 7 2 . 1 . . . . . 1 . 1 Impale 15 | . . . . . . . . . . 3 . . 2 3 . . . . 6 . 1 Melee Attacks 951 | . . 3 4 3 95 98 42 10 113 204 51 2 30 75 7 6 . 41 70 13 84 Impact 326 | . . 3 . 2 54 58 13 9 82 13 10 . 5 10 1 . . 7 22 2 35 Slashing 341 | . . . . . 41 40 29 1 31 106 27 2 4 12 1 2 . 11 6 9 19 Piercing 279 | . . . . . . . . . . 85 14 . 21 53 5 4 . 23 42 2 30 Sneak Attacks 96 | . . 2 4 2 17 3 5 1 3 31 . . 2 11 1 3 . 1 7 . 3 Combat Hostiles 12 | . . . . 1 2 3 . . 1 2 . . 1 . . . . 1 . . 1 Follow-up Attacks 103 | . . . . . 13 11 3 . 10 18 6 . 3 4 . 1 . 3 6 . 25 Damage Inflicted 29880 | 195 845 108 . 584 3750 2160 2238 146 3579 5607 2388 . 824 1506 80 320 . 634 1941 . 2975 Guns 1746 | 189 843 . . . . . . . 96 . 618 . . . . . . . . . . Cannons . | . . . . . . . . . . . . . . . . . . . . . . Explosions 3609 | . . . . 487 332 . 951 . 602 278 959 . . . . . . . . . . Melee 24481 | . . 108 . 97 3418 2160 1287 146 2881 5293 811 . 824 1506 80 320 . 634 1941 . 2975 Ramming 44 | 6 2 . . . . . . . . 36 . . . . . . . . . . . Kinetic 714 | . . . . . . . . . 96 . 618 . . . . . . . . . . Thermal 1120 | 189 843 . . 88 . . . . . . . . . . . . . . . . . Explosive 3521 | . . . . 399 332 . 951 . 602 278 959 . . . . . . . . . . Electromagnetic . | . . . . . . . . . . . . . . . . . . . . . . Impact 8447 | . . 108 . 97 2095 1186 358 146 2253 379 215 . 115 100 . . . 112 340 . 943 Slashing 9149 | . . . . . 1323 974 929 . 628 3313 375 . 96 27 . 42 . 37 349 . 1056 Piercing 6885 | . . . . . . . . . . 1601 221 . 613 1379 80 278 . 485 1252 . 976 Highest Corruption 8 | . 2 2 2 2 1 1 1 . . 3 . . . . . . . . . . 8 Average Corruption 1 | . 2 2 2 2 1 1 1 . . 1 . . . . . . . . . . 3 Corruption Purged 3 | . . . . . . . . . . 3 . . . . . . . . . . . Corruption Blocked 23 | . . . . . . . . . . 8 . . . 1 . . . . 1 13 . Effects 88 | . 12 7 16 3 5 17 8 . . 9 . . . . . . . . . . 11 Message Errors 19 | . 1 1 6 1 . 5 1 . . 1 . . . . . . . . . . 3 Matter Fused 26 | . 7 2 5 1 2 2 1 . . 1 . . . . . . . . . . 5 Heat Flow Errors 15 | . 1 2 1 . . 5 2 . . 4 . . . . . . . . . . . Energy Discharges 13 | . 1 2 2 1 1 1 3 . . . . . . . . . . . . . 2 Parts Fused 1 | . . . . . . 1 . . . . . . . . . . . . . . . Data Loss (minor) 6 | . 2 . 2 . . 1 . . . . . . . . . . . . . . 1 Data Loss (major) 7 | . . . . . 1 2 1 . . 3 . . . . . . . . . . . Alerts 1 | . . . . . 1 . . . . . . . . . . . . . . . . Overload Shots . | . . . . . . . . . . . . . . . . . . . . . . Overflow Damage 4239 | . . . . 65 895 270 172 111 755 698 86 . 99 179 . 86 . 175 326 . 322 Projectiles . | . . . . . . . . . . . . . . . . . . . . . . Explosions 194 | . . . . 19 21 . 39 . 95 1 19 . . . . . . . . . . Melee 4045 | . . . . 46 874 270 133 111 660 697 67 . 99 179 . 86 . 175 326 . 322 Knockbacks 29 | . . . . . 10 3 3 . 4 1 . . . . . . . . 2 . 6 Impact 29 | . . . . . 10 3 3 . 4 1 . . . . . . . . 2 . 6 Kinetic . | . . . . . . . . . . . . . . . . . . . . . . Secondary . | . . . . . . . . . . . . . . . . . . . . . . Self-Inflicted Damage 122 | . . . . 73 15 . . . . . 34 . . . . . . . . . . Shots 4 | . . . . 2 1 . . . . . 1 . . . . . . . . . . Rammed 4 | 2 2 . . . . . . . . . . . . . . . . . . . . Targets Rammed 8 | 2 2 . . . . . . . . 4 . . . . . . . . . . . Kicked 4 | . . . . . . . . . . 4 . . . . . . . . . . . Crushed . | . . . . . . . . . . . . . . . . . . . . . . Highest Temperature 269 | 117 228 233 156 10 3 258 222 . 1 269 57 . . 18 . . . . . . . Average Temperature 63 | 48 66 101 83 7 3 99 53 . 1 91 14 . . 9 . . . . . . . Received Heat Transfer 3357 | . 105 . . . 486 459 270 . 633 339 420 . 117 99 . 9 . . 54 . 366 Effects 3 | . 3 . . . . . . . . . . . . . . . . . . . . Interference 3 | . 3 . . . . . . . . . . . . . . . . . . . . Siege Activations . | . . . . . . . . . . . . . . . . . . . . . . Martial Activations . | . . . . . . . . . . . . . . . . . . . . . . Shielding Activations . | . . . . . . . . . . . . . . . . . . . . . . Robots Disrupted . | . . . . . . . . . . . . . . . . . . . . . . Combat Hostiles . | . . . . . . . . . . . . . . . . . . . . . . Robots Corrupted 36 | . . . . 1 10 5 3 1 10 1 1 . 1 . . . . 2 . . 1 Combat Hostiles 32 | . . . . . 8 5 3 . 10 1 1 . 1 . . . . 2 . . 1 Parts Fried 48 | . . . . 2 15 7 1 . 12 1 1 . 2 1 . . . 2 1 . 3 Impact Corruptions 85 | . . . . 2 25 12 5 2 23 4 2 . 1 1 . . . 2 1 . 5 Robots Melted 1 | . 1 . . . . . . . . . . . . . . . . . . . . Combat Hostiles 1 | . 1 . . . . . . . . . . . . . . . . . . . . Parts Melted 4 | . 3 . . . . . 1 . . . . . . . . . . . . . . Heat Transferred 3369 | 555 2664 . . 150 . . . . . . . . . . . . . . . . . Parts Sabotaged . | . . . . . . . . . . . . . . . . . . . . . . Parts Stolen . | . . . . . . . . . . . . . . . . . . . . . . Parts Stripped . | . . . . . . . . . . . . . . . . . . . . . . Power Chain Reactions . | . . . . . . . . . . . . . . . . . . . . . . Alert | -11 -10 -10 -10 -9 -8 -8 -8 -7 -7 -6 -6 -6 -6 -5 -5 -5 -5 -4 -4 -4 -4 ------- Run | Yrd Mat Min Exi Min Mat Gar Mat Fac Gar Fac Gar Fac DSF Fac Upp Upp Zhi Pro Fac Was Fac Maximum Alert Level 4 | . . . . . 1 4 2 1 4 3 3 2 2 1 . . . . 3 . . Low Security (%) 37 | 100 100 100 . 100 93 2 . 43 7 . . . . 44 . . . . . 100 100 Level 1 17 | . . . . . 6 12 . 56 14 43 . . 44 55 . . . . . . . Level 2 26 | . . . . . . 32 100 . 13 52 10 100 55 . . . . . 60 . . Level 3 14 | . . . . . . 26 . . 48 4 89 . . . . . . . 39 . . Level 4 4 | . . . . . . 25 . . 16 . . . . . . . . . . . . Level 5 . | . . . . . . . . . . . . . . . . . . . . . . High Security . | . . . . . . . . . . . . . . . . . . . . . . Max Security . | . . . . . . . . . . . . . . . . . . . . . . Sterilizations 1 | . . . . . . . . . . . . . 1 . . . . . . . . Peak Influence 1398 | 5 102 6 . 122 282 1398 681 280 1250 780 1026 545 558 292 . . . . 765 176 157 Initial 750 | . . 6 . . 3 178 681 275 81 655 552 538 350 292 . . . . 750 174 82 Average 408 | 1 30 . . 52 92 785 577 204 764 472 881 522 437 196 . . . . 634 150 78 Influence Increases 8143 | 20 364 10 . 203 750 1260 449 32 1259 869 624 23 228 304 30 20 . 190 1027 14 467 Destroy 0b10 Robot/C 3620 | . 220 . . 120 440 420 260 . 560 420 400 . 180 80 . 20 . 120 100 . 280 Destroy 0b10 Robot/NC 435 | 20 30 10 . 5 60 . 40 10 10 125 . . 5 55 . . . 5 50 . 10 Destroy Leader 592 | . 56 . . 20 76 10 58 2 30 144 30 . 30 16 . . . 20 40 . 60 Allied During Kill 20 | . . . . . . 9 . . . . . . 11 . . . . . . . . Trap Triggered on 0b10 50 | . . . . . . 50 . . . . . . . . . . . . . . . Successful Hack 122 | . 11 . . . 16 7 5 . 14 10 . 21 . 26 . . . . 12 . . Disable Machine 465 | . 30 . . 15 15 90 30 15 75 30 15 . . 75 . . . . 30 . 45 Anti-Garrison Action 850 | . . . . . . 400 . . 350 . 100 . . . . . . . . . . Destroy Structure 474 | . 2 . . 43 23 34 41 5 70 65 79 2 2 52 . . . . 30 14 12 Advance Influence 750 | . . . . . . . . . . . . . . . . . . . 750 . . Partial Spotted 15 | . . . . . 15 . . . . . . . . . . . . . . . . Lose Combat Pursuer 750 | . 15 . . . 105 240 15 . 150 75 . . . . 30 . . 45 15 . 60 Influence Decreases 8002 | 20 347 27 . 192 487 136 1241 521 126 1330 387 548 171 752 140 20 . 190 528 395 444 Entered New Map 3338 | . . 11 . . 8 96 717 331 36 595 237 488 151 266 41 . . . . 325 36 Time Decay 3859 | 20 347 16 . 157 439 . 514 190 . 705 . 60 . 486 99 20 . 180 278 70 278 Search Patrol Dispatched 200 | . . . . . . . . . . . . . . . . . . . 200 . . Lost Part 565 | . . . . 35 40 20 10 . 90 30 130 . 20 . . . . 10 50 . 130 Lost Ally 40 | . . . . . . 20 . . . . 20 . . . . . . . . . . Squads Dispatched 24 | . 2 . . . 3 . 3 1 . 10 . . . 3 . . . . . . 2 Investigation 3 | . . . . . . . . 1 . . . . . 1 . . . . . . 1 Extermination 9 | . . . . . . . . . . 7 . . . 1 . . . . . . 1 Reinforcement 10 | . 2 . . . 3 . 2 . . 2 . . . 1 . . . . . . . Assault 2 | . . . . . . . 1 . . 1 . . . . . . . . . . . Garrison . | . . . . . . . . . . . . . . . . . . . . . . Intercept . | . . . . . . . . . . . . . . . . . . . . . . Searches Triggered 2 | . . . . . . . . . . . . . . . . . . . 2 . . Construction Impeded 2 | . . . . . 1 . 1 . . . . . . . . . . . . . . Haulers Reinforced 2 | . . . . . . . . . . 1 . . . 1 . . . . . . . Active Scanning Responses . | . . . . . . . . . . . . . . . . . . . . . . Cargo Convoy Interrupts 2 | . . . . . . . . . . 1 . . . . . . . . . . 1 Stealth | -11 -10 -10 -10 -9 -8 -8 -8 -7 -7 -6 -6 -6 -6 -5 -5 -5 -5 -4 -4 -4 -4 --------- Run | Yrd Mat Min Exi Min Mat Gar Mat Fac Gar Fac Gar Fac DSF Fac Upp Upp Zhi Pro Fac Was Fac Distress Signals 12 | . 2 . . . 5 . . . . 1 . . . . . . . . 2 . 2 Communications Jammed 56 | . . . . . . . . . 8 37 . . . 7 . . . 1 1 . 2 Distress Signals 55 | . . . . . . . . . 8 37 . . . 7 . . . . 1 . 2 Times Spotted 295 | . 24 . . 6 36 29 19 2 41 37 21 . 9 9 2 1 . 14 13 6 26 Peak Tracking Total 7 | . 4 . . 4 5 3 4 1 5 4 6 . 4 4 2 1 . 5 3 5 7 Tactical Retreats 35 | . 1 . . . 4 10 1 . 7 5 . . . . 1 . . 1 1 1 3 ECM-based Alert Blocks 5 | . . . . . . . . . 5 . . . . . . . . . . . . Traps | -11 -10 -10 -10 -9 -8 -8 -8 -7 -7 -6 -6 -6 -6 -5 -5 -5 -5 -4 -4 -4 -4 ------- Run | Yrd Mat Min Exi Min Mat Gar Mat Fac Gar Fac Gar Fac DSF Fac Upp Upp Zhi Pro Fac Was Fac Traps Triggered 20 | . 2 . . . 1 6 . . . 3 3 . 1 2 . . . . 2 . . Indirectly . | . . . . . . . . . . . . . . . . . . . . . . Trap Hack Attempts . | . . . . . . . . . . . . . . . . . . . . . . Triggered . | . . . . . . . . . . . . . . . . . . . . . . Disarmed . | . . . . . . . . . . . . . . . . . . . . . . Reprogrammed . | . . . . . . . . . . . . . . . . . . . . . . Reused 5 | . . . . . . 5 . . . . . . . . . . . . . . . Traps Extracted . | . . . . . . . . . . . . . . . . . . . . . . Installed 8 | . . . . . . 8 . . . . . . . . . . . . . . . Triggered 5 | . . . . . . 5 . . . . . . . . . . . . . . . Most Traps Carried 4 | . . . . . . 4 . . . . . . . . . . . . . . . Machines | -11 -10 -10 -10 -9 -8 -8 -8 -7 -7 -6 -6 -6 -6 -5 -5 -5 -5 -4 -4 -4 -4 ---------- Run | Yrd Mat Min Exi Min Mat Gar Mat Fac Gar Fac Gar Fac DSF Fac Upp Upp Zhi Pro Fac Was Fac Machines Disabled 45 | . 3 . . 1 1 10 2 1 11 2 3 . 1 5 . . . . 2 . 3 Max in Single Turn 2 | . 1 . . 1 1 1 1 1 2 1 1 . 1 1 . . . . 1 . 1 Garrison Access 3 | . . . . . . . . . . . . . . 1 . . . . 1 . 1 Garrison Relay 9 | . . . . . . 3 . . 4 . 2 . . . . . . . . . . Phase Generator 1 | . . . . . . . . . 1 . . . . . . . . . . . . Machines Repaired . | . . . . . . . . . . . . . . . . . . . . . . Machines Dismantled 3 | . . . . . . . . . . . . . . . . . . . . . 3 Machines Sabotaged . | . . . . . . . . . . . . . . . . . . . . . . Overloaded Fab Kills . | . . . . . . . . . . . . . . . . . . . . . . Hacking | -11 -10 -10 -10 -9 -8 -8 -8 -7 -7 -6 -6 -6 -6 -5 -5 -5 -5 -4 -4 -4 -4 --------- Run | Yrd Mat Min Exi Min Mat Gar Mat Fac Gar Fac Gar Fac DSF Fac Upp Upp Zhi Pro Fac Was Fac Machines Accessed 55 | . 3 . 2 . 6 4 4 4 2 6 . 2 . 10 1 . 4 . 4 . 3 Terminals 29 | . 2 . . . 4 4 2 1 2 4 . 1 . 6 . . . . 2 . 1 Fabricators 1 | . . . . . . . . . . . . 1 . . . . . . . . . Repair Stations 5 | . . . . . . . 1 . . 1 . . . 2 . . . . . . 1 Recycling Units 1 | . 1 . . . . . . . . . . . . . . . . . . . . Scanalyzers 6 | . . . . . 1 . 1 2 . . . . . 1 . . . . 1 . . Garrison Access 6 | . . . . . 1 . . 1 . 1 . . . 1 . . . . 1 . 1 Total Hacks 118 | . 7 . 5 . 12 5 11 8 2 9 . 3 . 21 1 . 17 . 9 . 8 Successful 63 | . 3 . 5 . 6 2 9 3 1 2 . 2 . 6 1 . 17 . 3 . 3 Failed 54 | . 4 . . . 6 3 2 5 1 7 . 1 . 15 . . . . 5 . 5 Catastrophic 16 | . . . . . 1 1 1 1 1 3 . . . 5 . . . . 1 . 2 Database Lockouts 1 | . . . . . . . . . . . . . . . . . . . 1 . . Manual 46 | . 6 . 1 . 10 . 3 . . 4 . . . 10 . . . . 5 . 7 Terminals 61 | . 6 . . . 10 5 4 2 2 6 . 2 . 13 . . . . 5 . 6 Fabricators 1 | . . . . . . . . . . . . 1 . . . . . . . . . Repair Stations 9 | . . . . . . . 2 . . 2 . . . 4 . . . . . . 1 Recycling Units 1 | . 1 . . . . . . . . . . . . . . . . . . . . Scanalyzers 16 | . . . . . 1 . 5 5 . . . . . 3 . . . . 2 . . Garrison Access 7 | . . . . . 1 . . 1 . 1 . . . 1 . . . . 2 . 1 Terminal Hacks 29 | . . . 5 . 1 2 . . 1 . . 1 . 1 1 . 17 . . . . Record 9 | . . . 4 . . . . . . . . . . . . . 5 . . . . Part Schematic 5 | . . . . . 1 . . . . . . . . . . . 4 . . . . Robot Analysis 4 | . . . . . . . . . . . . . . . . . 4 . . . . Prototype ID Bank 4 | . . . . . . . . . . . . . . . . . 4 . . . . Open Door 2 | . . . . . . 1 . . . . . . . . 1 . . . . . . Open DSF 1 | . . . . . . . . . . . . 1 . . . . . . . . . Emergency Access Points 2 | . . . . . . 1 . . 1 . . . . . . . . . . . . Terminal Index 1 | . . . . . . . . . . . . . . 1 . . . . . . . Proto ID Catalog 1 | . . . 1 . . . . . . . . . . . . . . . . . . Fabricator Hacks 1 | . . . . . . . . . . . . 1 . . . . . . . . . Build 1 | . . . . . . . . . . . . 1 . . . . . . . . . Repair Station Hacks 3 | . . . . . . . 2 . . 1 . . . . . . . . . . . Scan Component 2 | . . . . . . . 1 . . 1 . . . . . . . . . . . Repair 1 | . . . . . . . 1 . . . . . . . . . . . . . . Recycling Unit Hacks 1 | . 1 . . . . . . . . . . . . . . . . . . . . Retrieve Components 1 | . 1 . . . . . . . . . . . . . . . . . . . . Scanalyzer 12 | . . . . . 1 . 5 2 . . . . . 3 . . . . 1 . . Insert Component 1 | . . . . . . . 1 . . . . . . . . . . . . . . Analyze 1 | . . . . . . . 1 . . . . . . . . . . . . . . Retrieve Study 10 | . . . . . 1 . 3 2 . . . . . 3 . . . . 1 . . Garrison Access Hacks 6 | . . . . . 1 . . 1 . 1 . . . 1 . . . . 1 . 1 Unlock Access 3 | . . . . . 1 . . 1 . 1 . . . . . . . . . . . Seal Access 3 | . . . . . . . . . . . . . . 1 . . . . 1 . 1 Unauthorized Hacks 11 | . 2 . . . 3 . 2 . . . . . . 1 . . . . 1 . 2 Terminals 10 | . 2 . . . 3 . 2 . . . . . . 1 . . . . 1 . 1 Assimilate 1 | . 1 . . . . . . . . . . . . . . . . . . . . Botnet 9 | . 1 . . . 3 . 2 . . . . . . 1 . . . . 1 . 1 Fabricators . | . . . . . . . . . . . . . . . . . . . . . . Repair Stations 1 | . . . . . . . . . . . . . . . . . . . . . 1 Patch 1 | . . . . . . . . . . . . . . . . . . . . . 1 Recycling Units . | . . . . . . . . . . . . . . . . . . . . . . Scanalyzers . | . . . . . . . . . . . . . . . . . . . . . . Garrison Access . | . . . . . . . . . . . . . . . . . . . . . . Data Cores Recovered . | . . . . . . . . . . . . . . . . . . . . . . Used . | . . . . . . . . . . . . . . . . . . . . . . Hacking Detections 35 | . 2 . . . 5 2 3 4 2 6 . . . 8 . . . . 2 . 1 Full Trace Events 3 | . . . . . . 1 . 1 . . . . . 1 . . . . . . . Feedback Events . | . . . . . . . . . . . . . . . . . . . . . . Feedback Blocked . | . . . . . . . . . . . . . . . . . . . . . . Robot Schematics Acquired . | . . . . . . . . . . . . . . . . . . . . . . Robots Built . | . . . . . . . . . . . . . . . . . . . . . . Authchips . | . . . . . . . . . . . . . . . . . . . . . . Time . | . . . . . . . . . . . . . . . . . . . . . . Total Robot Build Rating . | . . . . . . . . . . . . . . . . . . . . . . Part Schematics Acquired 6 | . . . . . 1 . 1 . . . . . . . . . 4 . . . . Parts Built 1 | . . . . . . . . . . . . 1 . . . . . . . . . Authchips . | . . . . . . . . . . . . . . . . . . . . . . Time 84 | . . . . . . . . . . . . 84 . . . . . . . . . Total Part Build Rating 6 | . . . . . . . . . . . . 6 . . . . . . . . . Part Studies Acquired 9 | . . . . . 1 . 2 2 . . . . . 3 . . . . 1 . . Parts Repaired 1 | . . . . . . . 1 . . . . . . . . . . . . . . Time 44 | . . . . . . . 44 . . . . . . . . . . . . . . Parts Recycled . | . . . . . . . . . . . . . . . . . . . . . . Recycled Matter . | . . . . . . . . . . . . . . . . . . . . . . Retrieved Matter . | . . . . . . . . . . . . . . . . . . . . . . Retrieved Components 6 | . 6 . . . . . . . . . . . . . . . . . . . . Parts Scanalyzed 1 | . . . . . . . 1 . . . . . . . . . . . . . . Part Schematics Acquired 1 | . . . . . . . 1 . . . . . . . . . . . . . . Parts Damaged . | . . . . . . . . . . . . . . . . . . . . . . Bothacking | -11 -10 -10 -10 -9 -8 -8 -8 -7 -7 -6 -6 -6 -6 -5 -5 -5 -5 -4 -4 -4 -4 ------------ Run | Yrd Mat Min Exi Min Mat Gar Mat Fac Gar Fac Gar Fac DSF Fac Upp Upp Zhi Pro Fac Was Fac Used RIF Installer . | . . . . . . . . . . . . . . . . . . . . . . Robots Hacked 6 | . . . 4 1 . . . . . . . . . 1 . . . . . . . Non-combat 4 | . . . 3 . . . . . . . . . . 1 . . . . . . . Combat 2 | . . . 1 1 . . . . . . . . . . . . . . . . . Robot Hacks Applied 6 | . . . 4 1 . . . . . . . . . 1 . . . . . . . parse_system 5 | . . . 4 1 . . . . . . . . . . . . . . . . . find_chute 1 | . . . . . . . . . . . . . . 1 . . . . . . . Relay Couplers Released 43 | . . . . . . 11 . . 16 . 13 . . . . . . . 3 . . Machine Destruction 40 | . . . . . . 11 . . 16 . 10 . . . . . . . 3 . . Programmers 3 | . . . . . . . . . . . 3 . . . . . . . . . . Fabnet Peak Effective % . | . . . . . . . . . . . . . . . . . . . . . . Robots Rewired . | . . . . . . . . . . . . . . . . . . . . . . Allies Hacked . | . . . . . . . . . . . . . . . . . . . . . . Hacks Repelled . | . . . . . . . . . . . . . . . . . . . . . . Allies | -11 -10 -10 -10 -9 -8 -8 -8 -7 -7 -6 -6 -6 -6 -5 -5 -5 -5 -4 -4 -4 -4 -------- Run | Yrd Mat Min Exi Min Mat Gar Mat Fac Gar Fac Gar Fac DSF Fac Upp Upp Zhi Pro Fac Was Fac Total Allies 6 | . . 1 . . . 2 . . . . 1 . 1 . . . . 1 . . . Largest Group 2 | . . 1 . . . 2 . . . . 1 . 1 . . . . 1 1 . . Highest-Rated Group 116 | . . 31 . . . 62 . . . . 85 . 90 . . . . 116 116 . . Highest-Rated Ally 116 | . . 31 . . . 31 . . . . 85 . 90 . . . . 116 116 . . Initial Warlord ECA Mod 28 | . . . . . . . 7 6 6 15 15 19 19 28 28 28 28 27 27 27 27 Total Orders 1 | . . . . . . . . . . . . . . . . . . . 1 . . STAY 1 | . . . . . . . . . . . . . . . . . . . 1 . . Ally Attacks 22 | . . . . . . 16 . . . . 2 . 4 . . . . . . . . Total Damage 436 | . . . . . . 188 . . . . 73 . 175 . . . . . . . . Kills 3 | . . . . . . 2 . . . . . . 1 . . . . . . . . Allies Corrupted . | . . . . . . . . . . . . . . . . . . . . . . Allies Melted 1 | . . . . . . . . . . . 1 . . . . . . . . . . Field Lobotomies 3 | . . . . . . . . . . . 1 . 1 . . . . 1 . . . Intel | -11 -10 -10 -10 -9 -8 -8 -8 -7 -7 -6 -6 -6 -6 -5 -5 -5 -5 -4 -4 -4 -4 ------- Run | Yrd Mat Min Exi Min Mat Gar Mat Fac Gar Fac Gar Fac DSF Fac Upp Upp Zhi Pro Fac Was Fac Active Infowar (turns) 15143 | 61 125 . . . 1136 666 793 389 1489 3083 1031 136 273 1264 732 760 208 1799 486 145 567 Optics 8602 | . . . . . . . . . 561 3083 1031 136 258 . 696 760 208 1799 70 . . IFF 3509 | . . . . . . . . . . . . . . . 729 744 194 1695 4 132 11 Terrain 6232 | . . . . . 1037 . . . . . . . 15 1189 728 745 202 1400 401 5 510 Traps 2959 | . . . . . 99 623 793 389 607 171 277 . . . . . . . . . . Seismic 186 | 61 125 . . . . . . . . . . . . . . . . . . . . Machine Analysis 402 | . . . . . . . . . . 402 . . . . . . . . . . . Cloaking 125 | . . . . . . . . . . . . . . . . . . . . . 125 Jamming 7868 | . . . . . . 43 . 388 1346 2641 1031 136 183 1261 1 . . 103 166 13 556 ECM 94 | . . . . . . . . . 94 . . . . . . . . . . . . Robot Analysis Total 4 | . . . . . . . . . . . . . . . . . 4 . . . . Derelict Logs Recovered 6 | . . 3 . . . . . . . . . . . . 1 . . 2 . . . Drone Launches . | . . . . . . . . . . . . . . . . . . . . . . Drone Recoveries . | . . . . . . . . . . . . . . . . . . . . . . Exploration | -11 -10 -10 -10 -9 -8 -8 -8 -7 -7 -6 -6 -6 -6 -5 -5 -5 -5 -4 -4 -4 -4 ------------- Run | Yrd Mat Min Exi Min Mat Gar Mat Fac Gar Fac Gar Fac DSF Fac Upp Upp Zhi Pro Fac Was Fac Turns Passed 22054 | 200 1316 1156 1068 328 1945 1924 1408 389 1578 3083 1031 136 363 1264 732 760 208 1799 611 145 610 Spaces Moved 11489 | 93 514 478 448 176 760 1157 546 269 648 1853 596 54 197 905 561 535 151 812 365 90 281 Core 2 | 2 . . . . . . . . . . . . . . . . . . . . . Treads 2372 | 91 514 478 448 176 665 . . . . . . . . . . . . . . . . Legs 9115 | . . . . . 95 1157 546 269 648 1853 596 54 197 905 561 535 151 812 365 90 281 Wheels . | . . . . . . . . . . . . . . . . . . . . . . Hover . | . . . . . . . . . . . . . . . . . . . . . . Flight . | . . . . . . . . . . . . . . . . . . . . . . Fastest Speed 50 | 50 160 240 160 160 123 123 123 115 115 117 117 120 108 105 105 105 105 105 105 110 110 Average Speed 135 | 157 216 240 234 160 155 123 132 128 151 119 120 120 114 108 105 105 105 105 107 110 115 Slowest Speed 250 | 160 240 240 240 160 250 123 136 130 235 212 190 120 120 175 105 105 116 105 112 110 185 Overloaded Moves . | . . . . . . . . . . . . . . . . . . . . . . Propulsion Burnouts . | . . . . . . . . . . . . . . . . . . . . . . Robots Hopped . | . . . . . . . . . . . . . . . . . . . . . . Potential Cave-ins 4 | . . . . . . . . . . . . . . . . . . 2 . 2 . Cave-ins Triggered . | . . . . . . . . . . . . . . . . . . . . . . Exploration Rate (%) 52 | 4 78 95 88 37 52 84 46 9 85 39 62 3 95 24 66 63 61 70 12 73 8 Regions Visited 21 Branch Regions 7 Pre-discovered Areas 7 | . . 1 1 . . . . . . . . . . . 1 . 3 1 . . . Known Exits Taken 8 | . . . . . 1 . 1 1 . 1 . 1 . 1 . 1 . 1 . . . Unknown Exits Taken 7 | 1 1 1 1 1 . . . . . . . . . . 1 . 1 . . . . Scrap Searched 10 | . . 3 . 1 . . . . . . . . . . 2 3 . 1 . . . Spaces Dug 162 | . . . . 5 2 4 7 5 . 55 8 2 . 26 4 . . 13 15 9 7 Terrain Destroyed 441 | . . . . 72 36 4 54 5 84 64 46 2 . 26 4 . . 13 15 9 7 Melee 157 | . . . . . 2 4 7 5 . 55 8 2 . 26 4 . . 13 15 9 7 Projectile 3 | . . . . . . . . . . . 3 . . . . . . . . . . AOE 281 | . . . . 72 34 . 47 . 84 9 35 . . . . . . . . . . Terrain Rammed . | . . . . . . . . . . . . . . . . . . . . . . Walls Destroyed . | . . . . . . . . . . . . . . . . . . . . . . Machines Disabled . | . . . . . . . . . . . . . . . . . . . . . . Actions | -11 -10 -10 -10 -9 -8 -8 -8 -7 -7 -6 -6 -6 -6 -5 -5 -5 -5 -4 -4 -4 -4 --------- Run | Yrd Mat Min Exi Min Mat Gar Mat Fac Gar Fac Gar Fac DSF Fac Upp Upp Zhi Pro Fac Was Fac Total 16364 | 118 613 485 464 203 1385 1511 1162 295 1038 2390 776 122 303 1100 694 725 202 1705 497 116 460 Wait 3190 | . 15 1 . . 473 207 532 9 217 261 42 61 19 72 118 184 15 830 49 16 69 Move 11470 | 93 513 477 447 175 760 1156 545 269 646 1853 593 53 196 904 560 534 150 811 365 89 281 Hop . | . . . . . . . . . . . . . . . . . . . . . . Pick Up 180 | 5 16 2 1 1 19 20 7 4 12 24 13 3 16 18 1 . 5 1 6 . 6 Fast Attach 89 | 7 3 . 2 . 8 2 3 . 7 13 10 . 7 6 3 . 9 3 5 . 1 Attach 70 | . . . . 6 6 1 1 2 10 13 11 . 2 2 . . . 1 4 . 11 Detach 17 | . . . . . 1 . 1 . 2 4 3 . 2 2 . . 1 . 1 . . Swap 205 | . 5 . 2 4 14 10 15 . 17 22 17 1 14 20 3 3 7 23 12 2 14 Drop 216 | . 7 3 8 . 23 21 13 2 14 30 12 2 24 22 4 . 15 4 6 . 6 Fire 149 | 12 52 . . 14 5 3 10 . 14 4 32 . 1 1 . . . 1 . . . Melee 737 | . . 2 4 3 76 79 35 9 99 162 39 2 22 53 5 4 . 31 49 9 54 Ram . | . . . . . . . . . . . . . . . . . . . . . . Kick 4 | . . . . . . . . . . 4 . . . . . . . . . . . Crush 3 | 1 2 . . . . . . . . . . . . . . . . . . . . Escape Stasis 8 | . . . . . . 4 . . . . 4 . . . . . . . . . . Rewire . | . . . . . . . . . . . . . . . . . . . . . . Trap 8 | . . . . . . 8 . . . . . . . . . . . . . . . Miscellaneous 18 | . . . . . . . . . . . . . . . . . . . . . 18 Route ------- -11/Scrapyard -10/Materials (discovered 3 exits: [*Mat x2] / [*Min]) -10/Mines (discovered 4 exits: [*Mat x2] / *Exi / [*Sub]) -10/Exiles -9/Mines -8/Materials (discovered 3 exits: *Fac x2 / Gar) -8/Garrison (discovered 4 exits: *Mat x4) -8/Materials -7/Factory (discovered 2 exits: *Fac / Gar) -7/Garrison (discovered 2 exits: *Fac x2) -6/Factory -6/Garrison (discovered 2 exits: *Fac x2) -6/Factory -6/DSF -5/Factory (discovered 3 exits: *Fac / *Upp / [Ext]) -5/Upper Caves -5/Upper Caves (discovered 2 exits: *Fac / *Zhi) -5/Zhirov -4/Proximity Caves -4/Factory -4/Waste -4/Factory History --------- Turn | Location | Event 13 | -11/Scrapyard | Discovered new exit (range 15) 201 | -11/Scrapyard | Entered Materials 316 | -10/Materials | Build established: Mutant 592 | -10/Materials | Discovered new exit (range 16) 766 | -10/Materials | Discovered new exit (range 6) 1284 | -10/Materials | Discovered new exit (range 15) 1517 | -10/Materials | Entered Mines 1518 | -10/Mines | Met a Derelict bent on vengeance 1861 | -10/Mines | Discovered new exit (range 7) 1869 | -10/Mines | Received a Mining Laser from a helpful Derelict 1974 | -10/Mines | Discovered new exit (range 9) 2053 | -10/Mines | Learned Materials stockpile data 2150 | -10/Mines | Found a damaged Exp. Sensor Array with a note attached 2157 | -10/Mines | Found Prototype Device 2533 | -10/Mines | Discovered new exit (range 12) 2591 | -10/Mines | Learned location of 1 exit from Materials 2661 | -10/Mines | Deemed a non-threat by the Exiles lab entrance 2663 | -10/Mines | Discovered new exit (range 5) 2673 | -10/Mines | Entered Exiles 2731 | -10/Exiles | Met 8R-AWN 2774 | -10/Exiles | Met EX-HEX 2882 | -10/Exiles | Met EX-BIN 2910 | -10/Exiles | Aligned with FarCom system 2912 | -10/Exiles | Given EX-Vault access code 2967 | -10/Exiles | Opened EX-Vault 2987 | -10/Exiles | Found Field Lobotomy Kit 3040 | -10/Exiles | Warned to stay clear of 0b10 Research branches 3112 | -10/Exiles | Met EX-DEC 3124 | -10/Exiles | Learned location of Zion (-6) 3223 | -10/Exiles | Visited The Gauntlet 3629 | -10/Exiles | Discovered new exit (range 14) 3741 | -10/Exiles | Left Exiles lab with Field Lobotomy Kit 3741 | -10/Exiles | Entered Mines 3791 | -9/Mines | Found a Scrap Suit stashed away for nefarious purposes 3914 | -9/Mines | Discovered new exit (range 14) 3926 | -9/Mines | Received a Rocket Launcher from a helpful Derelict 3999 | -9/Mines | Assembled infested the area 4004 | -9/Mines | Assisted by a Guerilla fighting off Assembled 4013 | -9/Mines | Core integrity fell below 50% 4023 | -9/Mines | Core integrity fell below 20% 4061 | -9/Mines | Lost 6 parts (1p2n1u2w) 4069 | -9/Mines | Entered Materials 4069 | -8/Materials | Evolved 4 slots: Propulsion x3, Utility x1 4070 | -8/Materials | Identified exit to Factory 4369 | -8/Materials | Build established: Assassin 5421 | -8/Materials | Build established: Mutant 5589 | -8/Materials | Discovered exit to Factory (range 7) 6014 | -8/Materials | Identified exit to Garrison 6014 | -8/Materials | Entered Garrison 6108 | -8/Garrison | Triggered checkpoint 6165 | -8/Garrison | Garrison Relay disabled 6172 | -8/Garrison | Triggered checkpoint 6264 | -8/Garrison | Discovered new exit (range 5) 6746 | -8/Garrison | Triggered checkpoint 6756 | -8/Garrison | Triggered checkpoint 7073 | -8/Garrison | Discovered new exit (range 14) 7120 | -8/Garrison | Triggered checkpoint 7189 | -8/Garrison | Garrison Relay disabled 7372 | -8/Garrison | Triggered checkpoint 7438 | -8/Garrison | Core integrity fell below 50% 7459 | -8/Garrison | Garrison Relay disabled 7513 | -8/Garrison | Discovered new exit (range 15) 7545 | -8/Garrison | Rescued a captive Derelict 7546 | -8/Garrison | Rescued a captive Derelict 7668 | -8/Garrison | Triggered checkpoint 7715 | -8/Garrison | Discovered new exit (range 15) 7938 | -8/Garrison | Entered Materials 8738 | -8/Materials | First assault squad dispatched 8855 | -8/Materials | Discovered exit to Factory (range 13) 8864 | -8/Materials | Destroyed 7 combat bots 9035 | -8/Materials | Repaired Lgt. Armored Exoskeleton 9346 | -8/Materials | Entered Factory 9346 | -7/Factory | Evolved 2 slots: Utility x2 9432 | -7/Factory | Discovered new exit (range 6) 9735 | -7/Factory | Identified exit to Garrison 9735 | -7/Factory | Entered Garrison 9747 | -7/Garrison | Garrison Relay disabled 9854 | -7/Garrison | Garrison Relay disabled 9884 | -7/Garrison | Phase Generator disabled 10051 | -7/Garrison | Triggered checkpoint 10165 | -7/Garrison | Triggered checkpoint 10178 | -7/Garrison | Build established: Infiltrator-Mutant 10197 | -7/Garrison | Triggered checkpoint 10203 | -7/Garrison | Triggered checkpoint 10345 | -7/Garrison | Triggered checkpoint 10415 | -7/Garrison | Garrison Relay disabled 10647 | -7/Garrison | Discovered new exit (range 10) 10679 | -7/Garrison | H-XX Assembler disabled 10749 | -7/Garrison | Build established: Mutant 10782 | -7/Garrison | Attempted to access garrison exit controls, blocked by remote lockdown 11275 | -7/Garrison | Discovered new exit (range 11) 11277 | -7/Garrison | Triggered checkpoint 11288 | -7/Garrison | Garrison Relay disabled 11313 | -7/Garrison | Entered Factory 11313 | -6/Factory | Evolved 2 slots: Utility x1, Weapon x1 11650 | -6/Factory | Spotted B-75 Beast 12501 | -6/Factory | Cargo convoy interrupted 12763 | -6/Factory | Build established: Gladiator 14113 | -6/Factory | First assault squad dispatched 14396 | -6/Factory | Identified exit to Garrison 14396 | -6/Factory | Entered Garrison 14462 | -6/Garrison | Garrison Relay disabled 14559 | -6/Garrison | Spotted B-75 Beast 14563 | -6/Garrison | Assimilated B-75 Beast with FLK Orb 14564 | -6/Garrison | Triggered checkpoint 14670 | -6/Garrison | Destroyed 7 combat bots 14755 | -6/Garrison | Core integrity fell below 50% 14801 | -6/Garrison | Lost 4 parts (2n1u1w) 14886 | -6/Garrison | Triggered checkpoint 14971 | -6/Garrison | Discovered new exit (range 11) 15000 | -6/Garrison | Triggered checkpoint 15056 | -6/Garrison | Lost 3 parts (2n1u) 15063 | -6/Garrison | Garrison Relay disabled 15073 | -6/Garrison | Build established: Scavenger-Skirmisher 15284 | -6/Garrison | Attempted to access garrison exit controls, blocked by remote lockdown 15376 | -6/Garrison | Triggered checkpoint 15405 | -6/Garrison | Discovered new exit (range 19) 15427 | -6/Garrison | Entered Factory 15517 | -6/Factory | Build established: Scavenger-Gladiator 15534 | -6/Factory | Fabricated Kinetic Spear (x1) 15561 | -6/Factory | Identified exit to DSF 15563 | -6/Factory | Entered DSF 15598 | -6/DSF | Assimilated H-61 Shepherd with FLK Orb 15613 | -6/DSF | Additional patrols routed to DSF 15670 | -6/DSF | Discovered new exit (range 15) 15885 | -6/DSF | Sterilization system engaged 15905 | -6/DSF | Ambient heat levels rising (+10) 15920 | -6/DSF | Ambient heat levels rising (+10) 15926 | -6/DSF | Entered Factory 15926 | -5/Factory | Evolved 2 slots: Propulsion x1, Utility x1 16046 | -5/Factory | Build established: Gladiator 16746 | -5/Factory | Discovered new exit (range 12) 16944 | -5/Factory | Discovered new exit (range 5) 16951 | -5/Factory | Identified exit to Upper Caves 17061 | -5/Factory | Discovered new exit (range 8) 17190 | -5/Factory | Entered Upper Caves 17215 | -5/Upper Caves | Met a Warlord Commander 17216 | -5/Upper Caves | Learned location of Warlord (-4) 17217 | -5/Upper Caves | Warlord Commander delivered Encrypted Comm Array 17223 | -5/Upper Caves | Found Encrypted Comm Array 17808 | -5/Upper Caves | Discovered new exit (range 10) 17814 | -5/Upper Caves | Encountered a Warlord checkpoint 17887 | -5/Upper Caves | Learned location of 1 exit from Upper Caves 17922 | -5/Upper Caves | Entered another Upper Caves area 17923 | -5/Upper Caves | Identified exit to Zhirov 17924 | -5/Upper Caves | Attracted the attention of an 0b10 checkpoint 18123 | -5/Upper Caves | Discovered new exit (range 13) 18682 | -5/Upper Caves | Entered Zhirov 18682 | -5/Zhirov | Discovered new exit (range 3) 18701 | -5/Zhirov | Met Zhirov 18724 | -5/Zhirov | Learned location of Quarantine (-2) 18724 | -5/Zhirov | Learned location of Testing (-3) 18724 | -5/Zhirov | Learned location of Command (-1) 18731 | -5/Zhirov | Zhirov requested help retrieving the SGEMP Prototype 18747 | -5/Zhirov | Found Alien Artifact 18747 | -5/Zhirov | Identified Integrated Dissipator 18747 | -5/Zhirov | Installed Integrated Dissipator, increased core heat dissipation (+20) 18763 | -5/Zhirov | Found Alien Artifact 18890 | -5/Zhirov | Entered Proximity Caves 18893 | -4/Proximity Caves | Spotter reported a threat 19047 | -4/Proximity Caves | Unaware initiated a cargo recovery operation 19227 | -4/Proximity Caves | Spotter reported a threat 19280 | -4/Proximity Caves | Spotter reported a threat 19333 | -4/Proximity Caves | Spotter reported a threat 20140 | -4/Proximity Caves | Spotter reported a threat 20553 | -4/Proximity Caves | Identified exit to Factory 20599 | -4/Proximity Caves | Spotted B-86 Titan 20602 | -4/Proximity Caves | Assimilated B-86 Titan with FLK Orb 20689 | -4/Proximity Caves | Entered Factory 20689 | -4/Factory | Accompanied by 1 ally 20689 | -4/Factory | Evolved 2 slots: Power x1, Weapon x1 20939 | -4/Factory | Search patrols dispatched 20951 | -4/Factory | Lost 5 parts (3n1u1w) 20968 | -4/Factory | Central database locked down 20984 | -4/Factory | Build established: Hacker-Gladiator 21189 | -4/Factory | Search patrols dispatched 21300 | -4/Factory | Sucked down chute 21300 | -4/Factory | Entered Waste 21315 | -4/Waste | EMP discharged 21362 | -4/Waste | Spotted C-40 Crusher 21367 | -4/Waste | Spotted C-40 Crusher 21374 | -4/Waste | Spotted C-40 Crusher 21389 | -4/Waste | Spotted C-40 Crusher 21403 | -4/Waste | Spotted C-40 Crusher 21415 | -4/Waste | EMP discharged 21426 | -4/Waste | Spotted C-40 Crusher 21435 | -4/Waste | Discovered new exit (range 10) 21445 | -4/Waste | Entered Factory 21954 | -4/Factory | Destroyed 8 combat bots 21975 | -4/Factory | Lost 12 parts (2p7n1u2w) 22024 | -4/Factory | Cargo convoy interrupted 22055 | -4/Factory | Self-destructed Last Messages --------------- 21967_ Sneak attack on K-01 Serf. 21967_ Destroyed Wheel. 21967_ K-01 Serf system corrupted by crushing effect. 21967_ K-01 Serf destroyed. 22010_ TULMI #<9OIBG XMHML KS1U 22015_ K-01 Serf collects debris. 22023_ C-45 Heavy ARC bursts open, deploying its payload. 22023_ X-72 Disruptor unfolds itself. 22023_ H-77 Assassin unfolds itself. 22024_ ALERT: Cargo convoy interrupted, initiating access lockdown. 22025_ Penetrated by Slug. 22032_ System corrupted: Matter fused (-5). 22050_ System corrupted: Matter fused (-7). 22051_ Lance follow-up attack on X-72 Disruptor. 22053_ X-72 Disruptor knocked back. 22053_ Slug penetrates Power Conduit. 22053_ Penetrated by Slug. Map ----- +----------------------------------------------------+ | ???????????????? ? ???# # #?## | | ????? ??#??????? " ?#??# # #??? | | ????????????????"%" "?#??# *+% #??? | | ?? ??????#????" "" " #??# [#!= """ #??? | | ??????????? " " " " " #?## # [* """ #??? | | "?????#???? " " " " #### # !=""""" #?#? | | ?????????? " " " " #??# [#########?#?? | | ????? ???# " " " " " #??# ##########?#?? | | ?????????#! " " " " " #??# #???? | | #????????# " " " g " ##?# ##### #??## | | ?????????# " " " " + ##??# #???? | | ????????## #### ##### #???? | | ???#?????#########/####?## #???#+##+###?? | | ???#???#?????#??##%#??######/####### !##? | | ?#???????#########=#??# / # #?? | | ?#?#??#?## ![[[[#%#### # """ !#?? | | ?##???#?## %=|] %/![ + """"""""" # "R #?? | | ?????????# !*%=!|#=[= # [#!""" #?? | | ?#?#??#??#####"###[=! # """""""""![#= !#?? | | ?????????????## #=*%! + %####+####? | | ??????????????### ### """""""""![#### ##??? | | ????????????#???# ### #??# ##??? | | ??#????????????## #?#h"" """" #??# #???? | | ?#??????#????#?## #?#h #### #???? | | ??????????????#?# ###x"""" "" [#??# #???? | | ??????????#?#?### #?#x @ ##?# #???? | | ?#??#????????#?## #?##############??# #???? | | ?#?????##???????# #??#?????#??#?#???# #???? | | ?????#?? ????? ?# #??????#??????#???# #??#? | | ???????????????# ??????????##????## #???? | | ???#?? ???????? #?????????#"###### #??#? | | ??#?#????????? ? " ? ???#?????# #??#? | | ???????????????? ?#???????#?#! #???# | | ??????????? ????? ? ?#?# #?????## """ #???? | | ???????????? ???#????#????????#?# """ #???? | | ???????????????????#?????#??????# """ #?#?? | | ??????????????????? ?+????# ##### #??#? | | ????????? ????????????? ??# = #??#? | | ?????????????????? #??????# #############?#?? | | ??????????????? ??????????? ????????????????? | | ?????????????????????? ???#?#????????#??????? | | ??????????????????????????#???????#?????????? | | ??????????????????????????? ?????? ?????????? | | ??????????????????#??? ?????????? ?? ??????? | | ????????????????????????????????????????????? | | ???????????????????????????????? ???????????? | | ????????????????????????????????????????????? | | ?????????????????????????? ????????????"????? | | ????????????????????????????????????????????? | | ?????????????????????????????? ??????? ???#?? | +----------------------------------------------------+ Best States ------------- Heat Dissipation 64 Energy Generation 41 Energy Capacity 460 Matter Stores 300 Matter Capacity 300 Sight Range 22 Terrain Scan Range 20 Terrain Scan Density 210 ECM Strength 2 Jamming Range 16 Cloak Strength 2 EM Shielding 3 Corruption Block 15 Armor Coverage 600 Resistance: EM 15 Utility Shielding 90 Melee Speed Boost 20 Phase Shifting 5 Evasion (%) 70 Targeting Accuracy 5 Melee Accuracy 14 Armor Integrity Analysis 30 Recoil Reduction 3 Offensive Hacking 12 Defensive Hacking 14 Authchip Count 2 Item Schematics ----------------- Hcp. Storage Unit | -8/Materials | Hacked Lgt. Armored Exoskeleton | -8/Materials | Scanalyzed Assault Drone Bay | -5/Zhirov | Free Exp. Heat Sink | -5/Zhirov | Free Exp. Optical Array | -5/Zhirov | Free Imp. Arc Thrower | -5/Zhirov | Free Robot Schematics ------------------ None Fabricated ------------ Kinetic Spear | x1 | -6/Factory | Preloaded Repaired ---------- Lgt. Armored Exoskeleton | 1% | -8/Materials Studied --------- Aluminum Leg | -8/Materials | Hacked VSS Leg | -8/Materials | Hacked Titanium Leg | -8/Materials | Hacked Lgt. Armored Exoskeleton | -7/Factory | Hacked Imp. Carbon-fiber Leg | -7/Factory | Hacked Carbon-fiber Leg | -5/Factory | Hacked Flexi-carbon Leg | -5/Factory | Hacked Imp. Deuterium Engine | -5/Factory | Hacked Myomer Leg | -4/Factory | Hacked Alien Tech Used ----------------- Integrated Dissipator Achievements -------------- None Challenges ------------ None Game ------ Seed LauncherGrapheneSuite Manual? 0 Play Time 02:29:42 Cumulative 433.4 hours Start 2026.07.07 @ 19:39:33 End 2026.07.07 @ 22:31:28 Sessions 1 Manual Loads 0 Difficulty Rogue Special Mode None Game No. 398 Rogue 398 Adventurer 0 Explorer 0 Win Type - Total 11 Types 7/0/2/1/0/0/0/0/0/1 Lore% 61 Gallery% 68 Achievement% 64 Wizard Run 0 Options --------- Layout 1 ASCII 0 Keyboard 0 Movement Mouse Keybinds 0 Fullscreen 2 Font 24/Cog Map View 50x35 Zoom Use 6% Tactical HUD 1 Map Filters NONE Filters NONE Steam 1 RUN: fa79f325-f06d-40a2-9b2d-ad7db027e820